bitfinex/quotes_SOLUSD_20220228
["timestamp","ask_amount","ask_price","bid_price","bid_amount"]
[1646041233725,47.82812345,90.315,90.249,6.0]
[1646041234321,47.82812345,90.315,90.25,66.41]
[1646041234521,47.82812345,90.315,90.251,6.0]
[1646041235525,47.82812345,90.315,90.25,72.41]
[1646041238448,47.82812345,90.315,90.249,66.41]
[1646041239651,1.82587588,90.314,90.248,40.85988175]
[1646041239852,48.7171,90.317,90.249,72.41]
[1646041240752,55.22344453,90.316,90.249,72.41]
[1646041241952,55.22344453,90.316,90.249,89.0145]
[1646041244755,23.0405,90.342,90.249,199.9145]
[1646041244956,1.66603034,90.341,90.249,223.9442]
[1646041245556,1.66603034,90.341,90.251,66.41]
[1646041245757,56.4883656,90.34,90.253,66.41]
[1646041245959,56.4883656,90.34,90.255,66.41]
[1646041246157,56.4883656,90.34,90.257,66.41]
[1646041246464,56.4883656,90.34,90.259,66.41]
[1646041246658,56.4883656,90.34,90.263,66.41]
[1646041246858,56.4883656,90.34,90.265,66.41]
[1646041247158,56.4883656,90.34,90.267,66.41]
[1646041247360,56.4883656,90.34,90.269,66.41]
[1646041247558,56.4883656,90.34,90.271,66.41]
[1646041247860,56.4883656,90.34,90.262,7.6611344]
[1646041247861,56.4883656,90.34,90.273,66.41]
[1646041248059,56.4883656,90.34,90.275,66.41]
[1646041248359,56.4883656,90.34,90.279,66.41]
[1646041248658,56.4883656,90.34,90.28,72.41]
[1646041249662,23.0405,90.342,90.28,72.41]
[1646041249861,71.24779208,90.369,90.28,72.41]
[1646041250061,68.50100287,90.369,90.28,72.41]
[1646041250264,1.82706704,90.368,90.28,72.41]
[1646041250461,27.26126453,90.372,90.28,72.41]
[1646041250462,1.51232582,90.371,90.28,72.41]
[1646041250661,50.86881585,90.37,90.28,72.41]
[1646041250862,1.45891298,90.369,90.28,72.41]
[1646041252165,27.26126453,90.368,90.28,72.41]
[1646041252366,1.74127233,90.367,90.28,72.41]
[1646041258172,1.74127233,90.367,90.28,6.0]
[1646041258373,1.71149497,90.366,90.28,6.0]
[1646041258776,142.6127595,90.366,90.28,6.0]
[1646041258975,1.57871408,90.365,90.279,22.7327]
[1646041259181,4.428,90.364,90.262,5.6331]
[1646041259378,31.57997861,90.365,90.267,66.41]
[1646041259579,27.26126453,90.365,90.267,66.41]
[1646041259876,4.67540334,90.364,90.269,66.41]
[1646041260075,113.64,90.364,90.27,90.9239]
[1646041260276,1.67150387,90.363,90.27,90.9239]
[1646041260678,1.67150387,90.363,90.271,6.0]
[1646041260875,2.74678921,90.362,90.271,6.0]
[1646041261576,2.74678921,90.362,90.268,42.51045714]
[1646041261779,110.9,90.359,90.268,42.51045714]
[1646041261978,4.429,90.358,90.268,42.51045714]
[1646041262278,110.9,90.355,90.268,42.51045714]
[1646041262482,1.54799349,90.354,90.268,42.51045714]
[1646041262680,110.9,90.349,90.268,42.51045714]
[1646041262978,1.48855508,90.348,90.268,42.51045714]
[1646041263579,28.74981961,90.348,90.242,66.41]
[1646041263797,1.60189798,90.346,90.243,6.0]
[1646041264401,134.9395,90.345,90.243,6.0]
[1646041264598,162.21091731,90.339,90.244,44.38981745]
[1646041264800,1.7035812,90.338,90.245,6.0]
[1646041265402,26.78628921,90.345,90.256,66.41]
[1646041265601,27.26126453,90.374,90.278,110.9]
[1646041265815,110.9,90.399,90.281,66.41]
[1646041266001,1.73890939,90.398,90.283,66.41]
[1646041266201,4.426,90.397,90.285,66.41]
[1646041266402,48.09875602,90.396,90.287,66.41]
[1646041266602,5.89469947,90.395,90.289,66.41]
[1646041266802,1.46869947,90.395,90.291,66.41]
[1646041267004,1.46869947,90.395,90.293,66.41]
[1646041267202,1.46869947,90.395,90.295,66.41]
[1646041267403,1.46869947,90.395,90.297,66.41]
[1646041267603,1.46869947,90.395,90.299,66.41]
[1646041267803,1.46869947,90.395,90.296,6.0]
[1646041267804,1.46869947,90.395,90.311,66.41]
[1646041268003,70.01271437,90.4,90.324,110.9]
[1646041268203,4.426,90.456,90.329,66.41]
[1646041268404,47.0459,90.44,90.331,66.41]
[1646041268603,1.80887329,90.439,90.333,66.41]
[1646041268803,59.11125684,90.438,90.335,66.41]
[1646041269004,1.46149314,90.437,90.337,66.41]
[1646041269204,1.46149314,90.437,90.341,66.41]
[1646041269404,1.46149314,90.437,90.343,66.41]
[1646041269606,1.46149314,90.437,90.345,66.41]
[1646041269805,1.46149314,90.437,90.347,66.41]
[1646041270005,1.46149314,90.437,90.349,66.41]
[1646041270204,1.46149314,90.437,90.35,72.41]
[1646041270405,1.46149314,90.437,90.351,6.0]
[1646041270807,24.9299312,90.455,90.351,6.0]
[1646041270808,1.85096999,90.48,90.371,110.9]
[1646041271009,1.85096999,90.48,90.381,66.41]
[1646041271210,1.85096999,90.48,90.383,66.41]
[1646041271405,1.85096999,90.48,90.385,66.41]
[1646041271605,1.85096999,90.48,90.387,66.41]
[1646041271805,1.42342577,90.478,90.389,66.41]
[1646041272108,1.42342577,90.478,90.391,66.41]
[1646041272306,1.42342577,90.478,90.393,66.41]
[1646041272507,1.42342577,90.478,90.395,66.41]
[1646041272707,1.42342577,90.478,90.394,6.0]
[1646041272708,1.42342577,90.478,90.397,66.41]
[1646041272908,1.42342577,90.478,90.399,66.41]
[1646041273107,1.42342577,90.478,90.401,66.41]
[1646041273310,1.42342577,90.478,90.403,66.41]
[1646041273507,23.9624,90.487,90.405,63.41]
[1646041273710,23.9624,90.487,90.407,63.41]
[1646041273908,23.9624,90.487,90.409,63.41]
[1646041274108,49.5384,90.516,90.413,63.41]
[1646041274307,1.57166068,90.515,90.417,174.31]
[1646041274512,1.57166068,90.515,90.421,63.41]
[1646041274713,1.57166068,90.515,90.423,63.41]
[1646041274911,1.57166068,90.515,90.425,63.41]
[1646041275210,1.57166068,90.515,90.427,63.41]
[1646041275408,1.57166068,90.515,90.431,63.41]
[1646041275611,1.57166068,90.515,90.433,63.41]
[1646041275809,1.57166068,90.515,90.435,63.41]
[1646041276110,1.57166068,90.515,90.434,6.0]
[1646041276111,1.57166068,90.515,90.437,63.41]
[1646041276309,1.57166068,90.515,90.439,63.41]
[1646041276510,1.57166068,90.515,90.441,63.41]
[1646041276712,1.57166068,90.515,90.443,63.41]
[1646041276911,1.57166068,90.515,90.445,63.41]
[1646041277213,1.57166068,90.515,90.448,35.34576903]
[1646041277412,110.9,90.515,90.449,6.0]
[1646041277611,1.67145103,90.514,90.41,15.95]
[1646041277812,4.421,90.513,90.411,6.0]
[1646041278414,4.421,90.513,90.412,108.8193365]
[1646041278614,1.67145103,90.514,90.414,66.41]
[1646041278813,1.67145103,90.514,90.416,66.41]
[1646041279015,1.67145103,90.514,90.418,66.41]
[1646041279217,4.421,90.513,90.42,66.41]
[1646041279416,4.421,90.513,90.421,6.0]
[1646041280017,1.67145103,90.514,90.421,6.0]
[1646041280818,1.67145103,90.514,90.422,66.41]
[1646041281017,1.67145103,90.514,90.424,66.41]
[1646041281220,1.67145103,90.514,90.426,66.41]
[1646041281519,1.67145103,90.514,90.425,6.0]
[1646041281520,1.67145103,90.514,90.431,66.41]
[1646041281717,1.67145103,90.514,90.433,66.41]
[1646041281918,1.67145103,90.514,90.435,66.41]
[1646041282120,1.67145103,90.514,90.437,66.41]
[1646041282327,1.67145103,90.514,90.441,66.41]
[1646041282618,1.67145103,90.514,90.443,66.41]
[1646041282819,1.67145103,90.514,90.445,66.41]
[1646041283018,1.67145103,90.514,90.447,66.41]
[1646041283222,1.67145103,90.514,90.449,66.41]
[1646041283421,1.67145103,90.514,90.45,6.0]
[1646041284023,1.67145103,90.514,90.441,6.0]
[1646041284421,1.67145103,90.514,90.441,72.41]
[1646041285823,1.67145103,90.514,90.441,6.0]
[1646041286123,1.67145103,90.514,90.44,6.11167965]
[1646041286323,24.86102253,90.513,90.44,6.11167965]
[1646041286523,110.9,90.512,90.44,6.11167965]
[1646041286724,110.9,90.512,90.406,16.7046]
[1646041286725,1.86916031,90.511,90.406,16.7046]
[1646041286925,1.86916031,90.511,90.408,66.41]
[1646041287126,4.421,90.51,90.41,66.41]
[1646041287327,4.421,90.51,90.411,72.41]
[1646041287723,4.421,90.51,90.412,48.22568574]
[1646041287926,110.9,90.509,90.412,48.22568574]
[1646041288224,1.8321213,90.507,90.412,48.22568574]
[1646041288823,1.8321213,90.507,90.413,6.0]
[1646041290524,1.8321213,90.507,90.414,66.41]
[1646041290723,1.5624786,90.515,90.416,66.41]
[1646041290924,1.5624786,90.515,90.421,66.41]
[1646041291125,1.5624786,90.515,90.423,66.41]
[1646041291425,1.5624786,90.515,90.425,66.41]
[1646041291624,1.5624786,90.515,90.427,66.41]
[1646041291825,1.5624786,90.515,90.429,66.41]
[1646041292023,1.5624786,90.515,90.431,66.41]
[1646041292224,1.5624786,90.515,90.433,66.41]
[1646041292424,1.5624786,90.515,90.435,66.41]
[1646041292627,1.5624786,90.515,90.437,66.41]
[1646041292825,1.5624786,90.515,90.434,6.0]
[1646041292826,1.5624786,90.515,90.439,66.41]
[1646041293025,1.5624786,90.515,90.441,66.41]
[1646041293225,1.5624786,90.515,90.442,6.0]
[1646041294126,1.5624786,90.515,90.436,66.41]
[1646041294327,1.5624786,90.515,90.438,66.41]
[1646041294526,1.5624786,90.515,90.44,66.41]
[1646041294728,1.92723771,90.538,90.442,66.41]
[1646041294926,1.92723771,90.538,90.444,66.41]
[1646041295129,1.92723771,90.538,90.446,66.41]
[1646041295327,1.92723771,90.538,90.448,66.41]
[1646041295626,1.92723771,90.538,90.45,66.41]
[1646041295826,44.84895059,90.524,90.452,66.41]
[1646041296027,44.84895059,90.524,90.454,66.41]
[1646041296328,44.84895059,90.524,90.456,66.41]
[1646041296527,46.6942,90.541,90.458,66.41]
[1646041296727,46.6942,90.541,90.459,6.0]
[1646041296930,46.6942,90.541,90.46,66.41]
[1646041297127,46.6942,90.541,90.462,66.41]
[1646041297329,46.6942,90.541,90.464,66.41]
[1646041297528,46.30195222,90.538,90.466,66.41]
[1646041297830,46.6942,90.541,90.468,66.41]
[1646041298027,46.6942,90.541,90.47,66.41]
[1646041298229,46.6942,90.541,90.472,66.41]
[1646041298527,46.6942,90.541,90.474,66.41]
[1646041298727,46.6942,90.541,90.476,66.41]
[1646041298930,46.6942,90.541,90.478,66.41]
[1646041299127,46.6942,90.541,90.479,6.0]
[1646041299326,1.79967131,90.54,90.478,66.41]
[1646041299528,1.79967131,90.54,90.48,66.41]
[1646041299729,1.79967131,90.54,90.481,72.41]
[1646041299927,46.6942,90.541,90.483,66.41]
[1646041300128,46.6942,90.541,90.485,66.41]
[1646041300332,46.6942,90.541,90.486,6.0]
[1646041300528,1.84016255,90.558,90.487,66.41]
[1646041300729,71.24429867,90.559,90.489,66.41]
[1646041300930,71.24429867,90.559,90.491,66.41]
[1646041301132,71.24429867,90.559,90.493,66.41]
[1646041301328,71.24429867,90.559,90.495,66.41]
[1646041301529,23.2315,90.58,90.497,66.41]
[1646041301729,112.45665568,90.579,90.498,6.0]
[1646041301931,110.9,90.577,90.492,6.0]
[1646041302129,1.48596021,90.576,90.492,6.0]
[1646041302329,4.23274942,90.576,90.492,6.0]
[1646041302531,6.48083091,90.576,90.492,6.0]
[1646041302731,1.48596021,90.576,90.492,6.0]
[1646041302932,2.74678921,90.575,90.482,6.0]
[1646041303732,23.2859,90.574,90.482,6.0]
[1646041303932,1.84009953,90.573,90.482,6.0]
[1646041304132,110.9,90.573,90.482,6.0]
[1646041304333,1.52853936,90.572,90.482,6.0]
[1646041304833,1.52853936,90.572,90.483,66.41]
[1646041305033,1.52853936,90.572,90.485,66.41]
[1646041305234,1.52853936,90.572,90.486,6.0]
[1646041305435,1.52853936,90.572,90.482,6.0]
[1646041305834,1.52853936,90.572,90.483,66.41]
[1646041306037,1.52853936,90.572,90.484,6.0]
[1646041306246,1.52853936,90.572,90.483,66.41]
[1646041306436,1.52853936,90.572,90.485,66.41]
[1646041306637,1.52853936,90.572,90.487,66.41]
[1646041306837,1.52853936,90.572,90.489,66.41]
[1646041307038,1.52853936,90.572,90.491,66.41]
[1646041307237,1.52853936,90.572,90.492,6.0]
[1646041307838,1.52853936,90.572,90.493,66.41]
[1646041308042,1.52853936,90.572,90.495,66.41]
[1646041308238,1.52853936,90.572,90.497,66.41]
[1646041308438,1.52853936,90.572,90.499,66.41]
[1646041308638,23.2859,90.574,90.501,66.41]
[1646041308840,1.44319397,90.573,90.503,66.41]
[1646041309039,1.44319397,90.573,90.504,6.0]
[1646041309639,1.44319397,90.573,90.505,66.41]
[1646041309839,1.44319397,90.573,90.507,66.41]
[1646041310041,1.44319397,90.573,90.509,66.41]
[1646041310843,1.44319397,90.573,90.51,6.0]
[1646041311042,1.44319397,90.573,90.506,6.0]
[1646041311241,1.44319397,90.573,90.507,66.41]
[1646041311441,1.44319397,90.573,90.49,59.388]
[1646041311442,50.09807682,90.578,90.51,15.95]
[1646041311641,50.09807682,90.578,90.511,72.41]
[1646041311841,50.09807682,90.578,90.513,66.41]
[1646041312041,50.09807682,90.578,90.515,66.41]
[1646041312244,50.09807682,90.578,90.517,66.41]
[1646041313243,50.09807682,90.578,90.519,66.41]
[1646041313445,50.09807682,90.578,90.521,66.41]
[1646041313642,50.09807682,90.578,90.522,6.0]
[1646041314643,50.09807682,90.578,90.511,66.41]
[1646041314644,50.09807682,90.578,90.513,66.41]
[1646041314844,25.88051564,90.597,90.515,66.41]
[1646041315043,25.88051564,90.597,90.514,6.0]
[1646041315044,25.88051564,90.597,90.521,66.41]
[1646041315245,25.88051564,90.597,90.523,66.41]
[1646041315445,25.88051564,90.597,90.525,66.41]
[1646041315646,25.88051564,90.597,90.527,66.41]
[1646041315844,51.74500848,90.596,90.529,66.41]
[1646041316047,1.44894784,90.595,90.531,66.41]
[1646041316246,1.44894784,90.595,90.533,66.41]
[1646041316451,51.74500848,90.596,90.535,66.41]
[1646041316646,23.8884,90.598,90.534,6.0]
[1646041316647,10.4519083,90.604,90.542,110.9]
[1646041316846,10.4519083,90.604,90.536,8.6818741]
[1646041316847,1.84486188,90.681,90.561,110.9]
[1646041317145,25.84057665,90.698,90.571,110.9]
[1646041317345,1.56488808,90.697,90.58,15.95]
[1646041317546,51.64362349,90.696,90.581,50.6630941]
[1646041317746,51.64362349,90.696,90.581,44.6630941]
[1646041317945,51.64362349,90.696,90.582,6.0]
[1646041317946,1.94357394,90.695,90.582,6.0]
[1646041318146,4.413,90.694,90.582,6.0]
[1646041318346,4.413,90.694,90.583,113.64678921]
[1646041318548,51.64362349,90.696,90.585,110.9]
[1646041318745,51.64362349,90.696,90.584,8.73067064]
[1646041318746,1.69575392,90.695,90.586,10.413]
[1646041318946,1.69575392,90.695,90.586,6.0]
[1646041319149,1.69575392,90.695,90.59,15.95]
[1646041319347,25.52245392,90.695,90.591,6.0]
[1646041319546,1.72062551,90.694,90.591,6.0]
[1646041320249,6.13262551,90.694,90.59,15.95]
[1646041320847,1.72062551,90.694,90.591,6.0]
[1646041321150,28.29967963,90.693,90.591,6.0]
[1646041321349,1.42319324,90.692,90.581,40.2500941]
[1646041321547,4.413,90.691,90.582,6.0]
[1646041321748,1.79983857,90.691,90.582,6.0]
[1646041321948,4.413,90.69,90.582,6.0]
[1646041322550,1.79983857,90.691,90.582,6.0]
[1646041322950,1.79983857,90.691,90.582,10.413]
[1646041323757,6.11306995,90.69,90.582,6.0]
[1646041324653,23.88858963,90.689,90.581,40.2500941]
[1646041324852,6.01894858,90.688,90.581,40.2500941]
[1646041325055,1.60594858,90.688,90.581,40.2500941]
[1646041325253,1.77746065,90.694,90.581,40.2500941]
[1646041325854,28.30158963,90.693,90.582,6.0]
[1646041326056,15.95,90.69,90.58,15.95]
[1646041326260,6.07960133,90.689,90.58,15.95]
[1646041326853,6.07960133,90.689,90.581,31.16664009]
[1646041327052,1.66660133,90.689,90.582,6.0]
[1646041327473,4.413,90.688,90.582,6.0]
[1646041327672,30.29492296,90.688,90.547,4.413]
[1646041327873,50.34542296,90.687,90.55,15.95]
[1646041328075,6.09845871,90.686,90.551,6.0]
[1646041328273,30.29592296,90.686,90.551,6.0]
[1646041328473,38.29153634,90.685,90.552,32.33766894]
[1646041328674,6.36139669,90.684,90.552,32.33766894]
[1646041328876,15.95,90.68,90.552,32.33766894]
[1646041329074,75.09362065,90.679,90.552,32.33766894]
[1646041329275,1.43571134,90.678,90.552,32.33766894]
[1646041329475,110.9,90.676,90.552,32.33766894]
[1646041329675,110.9,90.674,90.552,32.33766894]
[1646041329875,110.9,90.669,90.552,32.33766894]
[1646041330075,1.56792952,90.666,90.552,32.33766894]
[1646041330278,110.9,90.663,90.552,32.33766894]
[1646041330477,55.90361523,90.664,90.552,32.33766894]
[1646041330678,1.64324472,90.662,90.552,32.33766894]
[1646041330877,27.52516768,90.662,90.552,32.33766894]
[1646041331078,27.47695043,90.661,90.552,32.33766894]
[1646041331279,6.36059961,90.66,90.552,32.33766894]
[1646041331481,110.9,90.659,90.552,32.33766894]
[1646041331679,110.9,90.657,90.552,32.33766894]
[1646041331878,1.9240763,90.654,90.552,32.33766894]
[1646041332079,4.414,90.653,90.552,32.33766894]
[1646041334381,1.9240763,90.654,90.553,4.414]
[1646041334880,1.9240763,90.654,90.554,6.0]
[1646041335481,110.9,90.652,90.553,6.0]
[1646041335681,4.414,90.652,90.552,32.33766894]
[1646041335880,1.67780269,90.651,90.55,15.95]
[1646041336081,4.414,90.65,90.519,4.414]
[1646041336284,4.414,90.65,90.514,24.1376]
[1646041336285,110.9,90.639,90.514,24.1376]
[1646041336481,110.9,90.637,90.514,24.1376]
[1646041336685,110.9,90.635,90.514,24.1376]
[1646041336884,110.9,90.633,90.514,24.1376]
[1646041337084,110.9,90.629,90.501,4.416]
[1646041337285,110.9,90.627,90.481,4.416]
[1646041337484,15.95,90.63,90.476,23.1714]
[1646041337485,110.9,90.625,90.476,23.1714]
[1646041337685,110.9,90.609,90.476,23.1714]
[1646041337886,4.417,90.608,90.48,15.95]
[1646041338086,166.80361523,90.607,90.481,45.33538032]
[1646041338289,1.64022412,90.606,90.481,45.33538032]
[1646041338587,4.417,90.605,90.482,110.9]
[1646041338787,1.64022412,90.606,90.483,4.417]
[1646041338987,4.417,90.605,90.482,118.06378921]
[1646041339290,1.64022412,90.606,90.483,2.74678921]
[1646041339487,1.64022412,90.606,90.489,179.54622324]
[1646041339688,1.64022412,90.606,90.505,110.9]
[1646041339887,1.67983557,90.631,90.509,177.31]
[1646041340088,22.5867,90.631,90.521,110.9]
[1646041340288,1.64224998,90.63,90.523,110.9]
[1646041340489,1.64224998,90.63,90.525,110.9]
[1646041340687,60.92238438,90.629,90.54,15.95]
[1646041340889,60.92238438,90.629,90.55,15.95]
[1646041341089,60.92238438,90.629,90.551,6.0]
[1646041341287,1.8491411,90.628,90.551,6.0]
[1646041341488,1.8491411,90.628,90.55,15.95]
[1646041341689,1.8491411,90.628,90.551,6.0]
[1646041341892,110.9,90.628,90.551,6.0]
[1646041342089,1.7520563,90.628,90.541,39.86350719]
[1646041344691,1.66547218,90.627,90.541,39.86350719]
[1646041346292,1.66547218,90.627,90.52,15.95]
[1646041346491,4.416,90.626,90.511,2.74678921]
[1646041346693,1.66547218,90.627,90.511,2.74678921]
[1646041346898,4.416,90.626,90.511,2.74678921]
[1646041347297,4.416,90.626,90.528,40.8857773]
[1646041347495,1.66547218,90.627,90.528,40.8857773]
[1646041348596,4.416,90.626,90.528,40.8857773]
[1646041348795,4.416,90.626,90.511,2.74678921]
[1646041348796,4.416,90.626,90.51,38.7438]
[1646041348994,1.53887699,90.624,90.51,38.7438]
[1646041349195,15.95,90.62,90.51,22.7938]
[1646041349396,1.7757807,90.618,90.51,22.7938]
[1646041349602,4.416,90.617,90.51,22.7938]
[1646041349795,110.9,90.616,90.51,22.7938]
[1646041349999,110.9,90.612,90.506,42.48757209]
[1646041350198,110.9,90.609,90.506,42.48757209]
[1646041350398,1.66548575,90.608,90.506,42.48757209]
[1646041351000,4.417,90.607,90.506,42.48757209]
[1646041351199,1.66548575,90.608,90.506,42.48757209]
[1646041351800,1.66548575,90.608,90.507,4.417]
[1646041352204,1.66548575,90.608,90.506,42.48757209]
[1646041352602,1.66548575,90.608,90.503,24.7591]
[1646041352804,110.9,90.606,90.503,24.7591]
[1646041353001,4.417,90.605,90.503,24.7591]
[1646041353203,110.9,90.604,90.503,24.7591]
[1646041353406,1.44935833,90.603,90.48,15.95]
[1646041353605,110.9,90.602,90.481,36.36521582]
[1646041353802,110.9,90.6,90.481,36.36521582]
[1646041354002,110.9,90.598,90.481,36.36521582]
[1646041354203,1.66031835,90.597,90.481,36.36521582]
[1646041354405,1.66031835,90.597,90.481,34.86521582]
[1646041355704,1.66031835,90.597,90.482,4.417]
[1646041355905,1.66031835,90.597,90.482,115.317]
[1646041356104,1.66031835,90.597,90.483,2.74678921]
[1646041356303,1.66031835,90.597,90.485,110.9]
[1646041356604,1.66031835,90.597,90.486,121.317]
[1646041356906,1.66031835,90.597,90.5,15.95]
[1646041357104,1.66031835,90.597,90.501,22.6884483]
[1646041357303,1.66031835,90.597,90.501,18.2714483]
[1646041358504,1.66031835,90.597,90.502,110.9]
[1646041358705,53.58168139,90.599,90.503,6.0]
[1646041358907,53.58168139,90.599,90.503,8.74678921]
[1646041359308,53.58168139,90.599,90.504,2.74678921]
[1646041359507,53.58168139,90.599,90.505,6.0]
[1646041359910,53.58168139,90.599,90.506,2.74678921]
[1646041360112,53.58168139,90.599,90.52,15.95]
[1646041360311,53.58168139,90.599,90.521,6.0]
[1646041360510,53.58168139,90.599,90.522,29.8871579]
[1646041360711,53.58168139,90.599,90.523,6.0]
[1646041361332,53.58168139,90.599,90.523,8.74678921]
[1646041362433,53.58168139,90.599,90.523,6.0]
[1646041365640,1.45487096,90.598,90.523,6.0]
[1646041365841,1.45487096,90.598,90.522,29.8871579]
[1646041366041,53.58168139,90.599,90.522,29.8871579]
[1646041367242,53.58168139,90.599,90.523,6.0]
[1646041368943,1.44687045,90.598,90.522,29.8871579]
[1646041369142,1.44687045,90.598,90.523,6.0]
[1646041370144,1.44687045,90.598,90.522,29.8871579]
[1646041370346,1.44687045,90.598,90.523,6.0]
[1646041374148,110.9,90.598,90.523,6.0]
[1646041374449,1.43519506,90.597,90.493,16.691]
[1646041374649,4.417,90.596,90.493,16.691]
[1646041375149,4.417,90.596,90.503,33.87006688]
[1646041375348,1.43519506,90.597,90.503,33.87006688]
[1646041376250,115.317,90.596,90.503,33.87006688]
[1646041376449,1.79036297,90.595,90.503,33.87006688]
[1646041376849,4.417,90.594,90.503,33.87006688]
[1646041377054,4.417,90.594,90.48,11.54196138]
[1646041377750,110.9,90.589,90.48,11.54196138]
[1646041377951,110.9,90.587,90.48,11.54196138]
[1646041378154,50.13165449,90.584,90.491,41.85570378]
[1646041378351,115.318,90.583,90.491,41.85570378]
[1646041378550,110.9,90.581,90.491,41.85570378]
[1646041378751,1.83126971,90.58,90.491,41.85570378]
[1646041379352,110.9,90.579,90.48,11.54196138]
[1646041379552,110.9,90.577,90.478,23.3753]
[1646041379752,1.4212576,90.576,90.478,23.3753]
[1646041380159,1.4212576,90.576,90.473,22.686]
[1646041380352,1.4212576,90.576,90.474,35.04632428]
[1646041381453,1.4212576,90.576,90.475,6.0]
[1646041383756,1.95198118,90.581,90.48,15.95]
[1646041383954,1.95198118,90.581,90.482,110.9]
[1646041384154,1.95198118,90.581,90.483,6.0]
[1646041384354,1.95198118,90.581,90.483,21.06176102]
[1646041384554,1.95198118,90.581,90.484,6.0]
[1646041384756,1.95198118,90.581,90.485,24.9149]
[1646041384956,1.95198118,90.581,90.486,6.0]
[1646041385158,1.95198118,90.581,90.5,15.95]
[1646041385457,1.95198118,90.581,90.502,7.59033984]
[1646041385658,1.95198118,90.581,90.503,6.0]
[1646041392796,23.5258,90.582,90.503,6.0]
[1646041392797,23.5258,90.582,90.504,2.74678921]
[1646041393095,23.5258,90.582,90.505,18.32682364]
[1646041393297,23.5258,90.582,90.506,116.9]
[1646041393598,23.5258,90.582,90.52,15.95]
[1646041393795,23.5258,90.582,90.521,6.0]
[1646041393996,23.5258,90.582,90.522,35.04632428]
[1646041394196,23.5258,90.582,90.523,6.0]
[1646041398198,23.5258,90.582,90.522,35.04632428]
[1646041398199,1.89767957,90.581,90.522,35.04632428]
[1646041399699,23.5258,90.582,90.522,35.04632428]
[1646041399901,23.5258,90.582,90.523,6.0]
[1646041401004,1.83617602,90.581,90.52,15.95]
[1646041401206,1.83617602,90.581,90.507,7.47]
[1646041402610,1.83617602,90.581,90.51,15.95]
[1646041402810,1.83617602,90.581,90.511,6.0]
[1646041404212,1.83617602,90.581,90.512,2.74678921]
[1646041404412,1.83617602,90.581,90.513,6.0]
[1646041405013,1.83617602,90.581,90.511,6.0]
[1646041407312,1.42581361,90.59,90.511,6.0]
[1646041407512,51.36208249,90.591,90.512,18.33075395]
[1646041407714,1.87668869,90.59,90.513,6.0]
[1646041408612,1.87668869,90.59,90.511,6.0]
[1646041409715,1.87668869,90.59,90.512,2.74678921]
[1646041409915,51.36208249,90.591,90.513,6.0]
[1646041410315,1.62932462,90.59,90.514,21.07875139]
[1646041410616,1.62932462,90.59,90.515,6.0]
[1646041410817,1.62932462,90.59,90.52,15.95]
[1646041411019,1.62932462,90.59,90.522,4.19034701]
[1646041411217,1.62932462,90.59,90.523,6.0]
[1646041411519,51.36208249,90.591,90.523,6.0]
[1646041411718,51.36208249,90.591,90.524,2.74678921]
[1646041411917,51.36208249,90.591,90.525,6.0]
[1646041412118,1.61773071,90.59,90.524,2.74678921]
[1646041413924,1.61773071,90.59,90.525,6.0]
[1646041414324,1.61773071,90.59,90.522,4.19034701]
[1646041414623,51.36208249,90.591,90.523,6.0]
[1646041414825,51.36208249,90.591,90.523,27.07538044]
[1646041415032,51.36208249,90.591,90.524,2.74678921]
[1646041415224,51.36208249,90.591,90.525,6.0]
[1646041415524,51.36208249,90.591,90.541,32.93551866]
[1646041415727,1.78552327,90.59,90.54,15.95]